bitfinex/quotes_SOLUSD_20250902
["timestamp","ask_amount","ask_price","bid_price","bid_amount"]
[1756825383686,39.82,204.45,204.41,0.14216157]
[1756825383890,39.82,204.45,204.44,25.76149082]
[1756825384269,39.82,204.45,204.44,30.6529015]
[1756825384493,17.0557394,204.51,204.45,13.59559401]
[1756825384494,12.16589681,204.51,204.45,13.59559401]
[1756825384681,4.88952196,204.52,204.48,12.16589681]
[1756825384682,0.69,204.52,204.48,12.16589681]
[1756825384989,52.67589681,204.51,204.46,12.16589681]
[1756825385175,12.16589681,204.5,204.43,0.14216157]
[1756825385370,0.69,204.5,204.43,17.05738273]
[1756825385566,0.69,204.5,204.45,13.59559401]
[1756825385769,0.84502234,204.53,204.47,12.16589681]
[1756825386106,51.98589681,204.52,204.47,12.16589681]
[1756825386303,39.82,204.51,204.48,17.05628438]
[1756825386605,40.51,204.51,204.48,17.05628438]
[1756825386905,12.32091915,204.53,204.49,25.76149082]
[1756825386906,0.15502234,204.53,204.49,25.76149082]
[1756825387205,38.38,204.52,204.49,13.59559401]
[1756825387597,0.84502234,204.53,204.49,25.76149082]
[1756825387767,39.82,204.52,204.5,12.16589681]
[1756825388387,39.82,204.52,204.49,13.59559401]
[1756825388594,0.69,204.51,204.47,13.59559401]
[1756825388775,0.69,204.51,204.47,25.76149082]
[1756825389092,0.69,204.51,204.44,0.28432314]
[1756825389277,0.7,204.5,204.46,13.59559401]
[1756825389472,39.82,204.49,204.46,25.76149082]
[1756825389678,39.82,204.48,204.46,25.76149082]
[1756825389872,40.52,204.48,204.45,13.59559401]
[1756825390179,40.52,204.48,204.46,0.03]
[1756825390386,12.86589681,204.47,204.46,0.03]
[1756825391074,12.96724264,204.47,204.46,0.03]
[1756825391287,17.85793565,204.47,204.46,0.03]
[1756825391684,0.10134583,204.47,204.46,0.03]
[1756825391885,39.92134583,204.47,204.46,25.79149082]
[1756825392071,0.10134583,204.47,204.46,25.79149082]
[1756825392272,39.92134583,204.47,204.46,13.62559401]
[1756825393287,0.10134583,204.47,204.46,13.62559401]
[1756825393488,39.92134583,204.47,204.46,13.62559401]
[1756825393687,39.90134583,204.47,204.46,25.79149082]
[1756825393885,39.90134583,204.47,204.46,13.62559401]
[1756825395197,39.90134583,204.47,204.46,30.68242303]
[1756825395781,39.90134583,204.47,204.46,18.51652622]
[1756825395974,39.90134583,204.47,204.46,30.68242303]
[1756825397198,39.90134583,204.47,204.46,31.63674617]
[1756825397199,0.10134583,204.47,204.46,31.63674617]
[1756825397997,0.10134583,204.47,204.46,111.73674617]
[1756825398473,1e-08,204.48,204.47,13.87991715]
[1756825398673,1e-08,204.5,204.49,39.87991715]
[1756825398880,1e-08,204.5,204.49,52.04581396]
[1756825399098,1e-08,204.5,204.49,52.71581396]
[1756825399297,0.14850782,204.52,204.5,13.87991715]
[1756825399494,0.14850782,204.52,204.51,26.04581396]
[1756825399694,0.06,204.57,204.52,13.87991715]
[1756825399892,0.06,204.57,204.54,39.87991715]
[1756825400091,0.06,204.57,204.54,64.21171077]
[1756825400277,0.06,204.57,204.54,64.88171077]
[1756825401001,0.06,204.57,204.54,52.71581396]
[1756825401696,0.06,204.57,204.54,45.43893641]
[1756825402000,0.06,204.57,204.54,56.93483322]
[1756825402775,0.06,204.57,204.54,56.65051008]
[1756825402973,0.85926417,204.55,204.54,13.59559401]
[1756825403603,0.15926417,204.55,204.54,13.59559401]
[1756825403806,0.15926417,204.55,204.54,18.48461327]
[1756825403993,0.15926417,204.55,204.54,30.65051008]
[1756825404394,0.15926417,204.55,204.54,25.76149082]
[1756825404695,0.15926417,204.55,204.54,30.93483322]
[1756825404890,0.15926417,204.55,204.54,18.76893641]
[1756825405092,0.15926417,204.55,204.54,30.93483322]
[1756825405291,0.15926417,204.55,204.54,44.76893641]
[1756825405493,0.15926417,204.55,204.54,56.93483322]
[1756825405693,0.15926417,204.55,204.54,137.03483322]
[1756825406790,0.15926417,204.55,204.54,132.14581396]
[1756825407581,0.15926417,204.55,204.54,106.14581396]
[1756825409208,0.15926417,204.55,204.54,111.03483322]
[1756825409400,0.15926417,204.55,204.54,111.70483322]
[1756825409603,0.15926417,204.55,204.54,111.03483322]
[1756825410312,0.15926417,204.55,204.54,106.14581396]
[1756825410618,0.06,204.55,204.54,106.14581396]
[1756825410803,0.06,204.55,204.54,111.03483322]
[1756825410987,0.15768758,204.55,204.54,106.14581396]
[1756825411707,0.85768758,204.55,204.52,13.59559401]
[1756825411907,0.7,204.54,204.5,13.59559401]
[1756825412101,0.7,204.53,204.5,25.76149082]
[1756825412302,0.7,204.53,204.48,80.1]
[1756825412303,0.7,204.52,204.46,80.13]
[1756825412609,0.7,204.51,204.48,13.59559401]
[1756825412790,39.76,204.54,204.48,13.59559401]
[1756825412791,0.7,204.53,204.5,13.59559401]
[1756825412990,40.46,204.53,204.5,13.59559401]
[1756825413191,17.21240561,204.55,204.51,13.59559401]
[1756825413388,12.86589681,204.52,204.46,80.13]
[1756825413604,8.04724734,204.52,204.47,13.59559401]
[1756825413808,0.7,204.51,204.47,13.59559401]
[1756825414009,8.74724734,204.5,204.46,0.03]
[1756825414417,8.04724734,204.49,204.46,0.03]
[1756825414713,8.74724734,204.49,204.46,0.03]
[1756825414914,0.7,204.48,204.46,0.03]
[1756825415095,39.76,204.52,204.47,13.59559401]
[1756825415293,40.46,204.52,204.49,8.04724734]
[1756825415510,0.7,204.51,204.48,0.28432314]
[1756825415717,39.76,204.52,204.48,13.87991715]
[1756825415905,0.7,204.51,204.48,13.87991715]
[1756825416213,8.74724734,204.5,204.46,0.03]
[1756825416411,0.7,204.5,204.46,0.03]
[1756825416605,40.46,204.49,204.46,0.03]
[1756825417216,0.7,204.48,204.46,0.03]
[1756825417513,0.7,204.48,204.46,80.13]
[1756825417701,47.80724734,204.49,204.46,80.13]
[1756825417702,0.7,204.47,204.46,0.03]
[1756825418445,74.50724734,204.47,204.46,0.03]
[1756825418597,79.39794035,204.47,204.46,0.03]
[1756825419114,71.35069301,204.47,204.46,0.03]
[1756825419297,79.39794035,204.47,204.46,0.03]
[1756825420303,39.63794035,204.47,204.46,0.03]
[1756825420507,79.39794035,204.47,204.46,0.03]
[1756825420728,34.74724734,204.47,204.46,0.03]
[1756825420918,0.7,204.47,204.46,0.03]
[1756825421104,48.50724734,204.47,204.46,0.03]
[1756825421311,8.74724734,204.47,204.46,0.03]
[1756825421510,48.50724734,204.47,204.46,0.03]
[1756825421711,53.39794035,204.47,204.46,0.03]
[1756825423319,13.63794035,204.47,204.46,0.03]
[1756825423521,53.39794035,204.47,204.46,0.03]
[1756825424029,48.50724734,204.47,204.46,0.03]
[1756825424526,26.0,204.49,204.46,0.03]
[1756825424818,0.68,204.49,204.46,0.03]
[1756825425001,4.88901926,204.54,204.46,0.03]
[1756825425002,48.48724734,204.48,204.46,0.03]
[1756825425325,1.96044796,204.52,204.46,8.07724734]
[1756825425546,39.76,204.51,204.48,8.04724734]
[1756825425828,40.44,204.51,204.46,0.03]
[1756825426029,39.76,204.51,204.47,8.04724734]
[1756825426200,39.76,204.51,204.48,8.04724734]
[1756825427023,8.72724734,204.54,204.47,13.59559401]
[1756825427024,0.68,204.54,204.49,8.04724734]
[1756825427216,39.76,204.53,204.5,8.04724734]
[1756825427420,40.44,204.53,204.49,8.04724734]
[1756825427808,0.68,204.53,204.49,8.04724734]
[1756825428000,39.76,204.52,204.49,8.04724734]
[1756825428203,40.44,204.52,204.49,8.04724734]
[1756825428427,0.68,204.51,204.47,8.04724734]
[1756825429304,52.69678259,204.52,204.47,8.04724734]
[1756825429506,52.69678259,204.52,204.46,8.07724734]
[1756825429507,0.68,204.51,204.46,8.07724734]
[1756825430211,8.72724734,204.5,204.46,0.03]
[1756825430420,8.04724734,204.47,204.46,0.03]
[1756825430734,47.78724734,204.47,204.46,0.03]
[1756825430949,47.78724734,204.47,204.43,0.03]
[1756825430950,26.0,204.44,204.43,0.03]
[1756825431234,34.04724734,204.44,204.43,0.03]
[1756825431405,34.72724734,204.44,204.43,0.03]
[1756825432427,39.61865802,204.44,204.43,0.03]
[1756825432806,39.61865802,204.44,204.43,1e-08]
[1756825433016,39.61865802,204.44,204.41,0.03]
[1756825433214,8.04724734,204.42,204.41,0.03]
[1756825433607,8.72724734,204.42,204.41,0.03]
[1756825433820,48.46724734,204.42,204.41,0.03]
[1756825434045,8.72724734,204.42,204.41,0.03]
[1756825434328,48.46724734,204.42,204.41,0.03]
[1756825434531,53.35913658,204.42,204.41,0.03]
[1756825435329,53.35913658,204.42,204.41,1e-08]
[1756825435535,26.0,204.39,204.29,13.59559401]
[1756825435743,8.04724734,204.33,204.29,13.59559401]
[1756825435959,0.68,204.38,204.3,0.69]
[1756825436251,8.04724734,204.34,204.3,80.79]
[1756825436450,39.74,204.37,204.3,80.79]
[1756825436451,47.78724734,204.33,204.3,80.1]
[1756825437759,39.74,204.33,204.3,80.79]
[1756825437923,47.78724734,204.33,204.3,80.79]
[1756825438344,39.76,204.32,204.31,0.69]
[1756825438631,39.76,204.32,204.3,80.1]
[1756825438632,47.80724734,204.32,204.3,80.1]
[1756825439038,8.04724734,204.31,204.3,80.1]
[1756825439251,38.23194641,204.39,204.3,80.1]
[1756825439432,8.04724734,204.33,204.28,88.83724734]
[1756825439626,47.78724734,204.32,204.28,80.79]
[1756825439934,39.74,204.32,204.29,0.69]
[1756825440131,39.74,204.31,204.28,93.04242345]
[1756825440352,39.74,204.31,204.3,0.69]
[1756825440540,39.74,204.31,204.29,0.69]
[1756825440759,39.74,204.3,204.29,0.69]
[1756825441260,8.04724734,204.35,204.3,13.59559401]
[1756825441636,8.04724734,204.32,204.27,13.87991715]
[1756825441845,39.74,204.31,204.27,14.56991715]
[1756825443050,48.46724734,204.31,204.25,80.2]
[1756825443248,8.04724734,204.3,204.26,13.59559401]
[1756825443440,47.78724734,204.31,204.26,22.33284135]
[1756825443756,0.68,204.34,204.26,22.33284135]
[1756825443963,39.74,204.33,204.31,8.04724734]
[1756825444164,0.68,204.37,204.32,8.04724734]
[1756825444332,39.74,204.36,204.34,8.04724734]
[1756825444535,39.74,204.36,204.33,8.04724734]
[1756825444857,39.74,204.36,204.32,8.04724734]
[1756825445059,44.63336318,204.36,204.31,13.59559401]
[1756825445360,39.74,204.36,204.32,8.73724734]
[1756825445858,0.06,204.41,204.35,21.64284135]
[1756825446057,21.26,204.4,204.39,8.04724734]
[1756825446260,21.26,204.4,204.38,8.04724734]
[1756825447356,21.26,204.4,204.37,21.64284135]
[1756825448170,21.26,204.4,204.38,8.04724734]
[1756825448774,21.26,204.4,204.39,8.04724734]
[1756825448945,0.06,204.41,204.39,8.73724734]
[1756825449278,0.06,204.41,204.4,27.53953239]
[1756825449779,0.06,204.41,204.4,13.59559401]
[1756825450475,0.06,204.41,204.4,27.53953239]
[1756825451077,0.15180898,204.41,204.4,27.53953239]
[1756825455777,0.15180898,204.41,204.4,13.94393838]
[1756825456149,0.15180898,204.41,204.4,107.63953239]
[1756825458848,0.15180898,204.41,204.4,102.02716449]
[1756825459044,0.15180898,204.41,204.4,106.91953239]
[1756825459247,0.15180898,204.41,204.4,107.63953239]
[1756825460549,0.15180898,204.41,204.4,93.83775558]
[1756825460751,0.15180898,204.41,204.4,98.87228505]
[1756825460952,0.15180898,204.41,204.4,107.63953239]
[1756825461793,0.15180898,204.41,204.4,133.63953239]
[1756825464084,0.15180898,204.41,204.4,124.90228505]
[1756825464390,0.15180898,204.41,204.4,133.66953239]
[1756825464679,0.15180898,204.41,204.4,107.66953239]
[1756825464983,0.15180898,204.41,204.4,99.62228505]
[1756825465370,0.15180898,204.41,204.4,124.90228505]
[1756825465572,0.15180898,204.41,204.4,132.94953239]
[1756825465795,0.87180898,204.41,204.4,0.03]
[1756825466090,13.81118488,204.41,204.4,0.03]
[1756825467576,8.91905632,204.41,204.4,0.03]
[1756825467787,13.81118488,204.41,204.4,0.03]
[1756825468863,8.91905632,204.41,204.4,0.03]
[1756825469065,13.81118488,204.41,204.4,0.03]
[1756825470781,13.7193759,204.41,204.4,0.03]
[1756825471089,13.81718589,204.41,204.4,0.03]
[1756825471497,53.49718589,204.41,204.4,0.03]
[1756825472302,13.81718589,204.41,204.4,0.03]
[1756825472590,53.49718589,204.41,204.4,0.03]
[1756825473595,57.61275538,204.41,204.4,0.03]
[1756825474390,57.61275538,204.41,204.35,0.03]
[1756825474391,26.0,204.38,204.35,0.03]
[1756825474585,12.16281683,204.36,204.3,0.03]
[1756825474785,12.16281683,204.31,204.3,0.03]
[1756825474993,51.84281683,204.31,204.3,0.03]
[1756825475174,52.56281683,204.31,204.3,0.03]
[1756825475710,52.56281683,204.31,204.24,0.1]
[1756825475711,26.0,204.28,204.24,0.1]
[1756825475877,38.16281683,204.28,204.24,0.1]
[1756825476080,12.16281683,204.26,204.24,0.1]
[1756825476281,17.05877766,204.25,204.24,0.1]
[1756825476474,45.29596083,204.25,204.24,0.1]
[1756825476704,57.45877766,204.25,204.24,0.1]
[1756825476880,17.77877766,204.25,204.24,0.1]
[1756825477079,57.45877766,204.25,204.24,0.1]
[1756825477480,26.0,204.22,204.19,0.1]
[1756825477809,12.16281683,204.2,204.19,0.1]
[1756825477989,51.84281683,204.2,204.19,0.1]
[1756825478190,52.56281683,204.2,204.19,0.1]
[1756825478396,0.72,204.2,204.19,0.1]
[1756825478701,12.88281683,204.2,204.19,0.1]
[1756825478893,52.56281683,204.2,204.19,0.1]
[1756825479287,57.45997647,204.2,204.19,0.1]
[1756825480106,57.47997647,204.2,204.19,0.1]
[1756825481583,57.47997647,204.2,204.19,1e-08]
[1756825483805,17.77997647,204.2,204.19,1e-08]
[1756825484003,57.47997647,204.2,204.19,1e-08]
[1756825484408,17.77997647,204.2,204.19,1e-08]
[1756825484602,45.31715964,204.2,204.19,1e-08]
[1756825484805,57.47997647,204.2,204.19,1e-08]
[1756825485586,17.77997647,204.2,204.19,1e-08]
[1756825485791,57.47997647,204.2,204.19,1e-08]
[1756825486090,57.76429961,204.2,204.19,1e-08]
[1756825490418,59.72811628,204.2,204.19,1e-08]
[1756825491118,59.8282133,204.2,204.19,1e-08]
[1756825492018,20.1282133,204.2,204.19,1e-08]
[1756825492191,59.8282133,204.2,204.19,1e-08]
[1756825492791,59.54389016,204.2,204.19,1e-08]
[1756825493026,19.84389016,204.2,204.19,1e-08]
[1756825493189,7.68107333,204.2,204.19,1e-08]
[1756825493394,19.84389016,204.2,204.19,1e-08]
[1756825493616,59.54389016,204.2,204.19,1e-08]
[1756825494613,59.8282133,204.2,204.19,1e-08]
[1756825495019,20.1282133,204.2,204.19,1e-08]
[1756825495395,59.8282133,204.2,204.19,1e-08]
[1756825497993,59.8082133,204.2,204.19,1e-08]
[1756825499425,59.8682133,204.2,204.19,1e-08]
[1756825500211,58.86389016,204.2,204.19,1e-08]
[1756825500600,59.57389016,204.2,204.19,1e-08]
[1756825501317,59.8582133,204.2,204.19,1e-08]
[1756825501622,26.0,204.17,204.16,1e-08]
[1756825501827,26.0,204.17,204.05,0.69]
[1756825501828,26.0,204.13,204.05,0.69]
[1756825502036,12.16281683,204.06,204.05,0.69]
[1756825502332,51.84281683,204.06,204.05,0.69]
[1756825502701,39.68,204.06,204.05,0.69]
[1756825503000,60.75377114,204.06,204.03,0.69]
[1756825503200,60.75377114,204.06,203.98,13.69559401]
[1756825503201,12.16281683,204.04,204.01,0.69]
[1756825503405,39.68,204.03,203.98,0.1]
[1756825503629,51.84281683,204.02,203.98,0.1]
[1756825503834,26.0,204.08,203.98,25.85841084]
[1756825504035,12.16281683,204.03,203.99,0.69]
[1756825504327,39.68,204.02,203.99,0.69]
[1756825505136,39.68,204.02,203.99,5.59205995]
[1756825505305,39.68,204.01,204.0,0.69]
[1756825505503,4.89976422,204.1,204.0,12.85281683]
[1756825505703,12.16281683,204.05,204.01,0.69]
[1756825505920,39.68,204.04,204.02,0.69]
[1756825506124,39.68,204.03,204.02,12.85281683]
[1756825506526,12.16281683,204.12,204.02,12.85281683]
[1756825506697,12.16281683,204.1,204.05,12.16281683]
[1756825506902,39.68,204.09,204.06,0.69]
[1756825507103,39.68,204.08,204.06,5.59048859]
[1756825507317,26.0,204.14,204.07,0.69]
[1756825507522,26.0,204.1,204.03,0.69]
[1756825507714,12.16281683,204.08,204.05,0.69]
[1756825507920,39.68,204.09,204.06,0.69]
[1756825508135,12.16281683,204.08,204.06,0.69]
[1756825508437,39.68,204.07,204.04,12.16281683]
[1756825508730,39.68,204.06,204.04,13.59559401]
[1756825508909,39.68,204.05,204.02,12.3049784]
[1756825509224,51.84281683,204.05,203.86,24.52544463]
[1756825509427,12.16281683,204.04,203.99,13.59559401]
[1756825509725,12.16281683,204.04,204.0,0.72]
[1756825510133,12.16281683,204.02,204.0,0.72]
[1756825510336,39.66,204.01,204.0,0.72]
[1756825510632,39.66,204.01,203.99,13.59559401]
[1756825511131,39.76144732,204.01,204.0,0.72]
[1756825512519,0.10144732,204.01,204.0,0.72]
[1756825512712,39.76144732,204.01,204.0,0.72]
[1756825512925,39.76144732,204.01,204.0,31.52253319]
[1756825513119,0.10144732,204.01,204.0,31.52253319]
[1756825513317,0.10144732,204.01,204.0,31.66469476]
[1756825513631,1e-08,204.01,204.0,111.76469476]
[1756825514127,1e-08,204.02,204.01,13.87991715]
[1756825514344,0.09749964,204.05,204.03,26.0]
[1756825514542,0.09749964,204.05,204.04,26.76273398]
[1756825514707,0.09749964,204.05,204.04,106.86273398]
[1756825515126,0.09749964,204.05,204.04,111.76373378]
[1756825515722,0.09749964,204.05,204.04,0.72]
[1756825515930,0.09749964,204.05,204.04,12.88281683]
[1756825516143,39.75749964,204.05,204.04,5.6209998]
[1756825516354,39.75749964,204.05,204.04,31.37941064]
[1756825516732,0.09749964,204.05,204.04,31.66373378]
[1756825517124,0.09749964,204.05,204.04,31.69373378]
[1756825517353,0.09749964,204.05,204.04,13.76775558]
[1756825517523,0.09749964,204.05,204.04,0.03]
[1756825518136,12.92031647,204.05,204.04,0.03]
[1756825518336,5.65825925,204.05,204.04,0.03]
[1756825518525,0.09749964,204.05,204.04,0.03]
[1756825518725,52.58031647,204.05,204.04,0.03]
[1756825518945,57.48107608,204.05,204.04,0.03]
[1756825519450,39.75749964,204.05,204.04,0.03]
[1756825519649,0.09749964,204.05,204.04,0.03]
[1756825519854,39.73749964,204.05,204.04,0.03]
[1756825520066,52.56031647,204.05,204.04,0.03]
[1756825520233,57.46107608,204.05,204.04,0.03]
[1756825520436,52.56031647,204.05,204.04,0.03]
[1756825520738,12.26031647,204.05,204.04,0.03]
[1756825520937,51.90031647,204.05,204.04,0.03]
[1756825521325,12.26031647,204.05,204.04,0.03]
[1756825521635,39.73749964,204.05,204.04,0.03]
[1756825522153,52.56031647,204.05,204.04,0.03]
[1756825522328,51.90031647,204.05,204.04,0.03]
[1756825523268,39.73749964,204.05,204.04,0.03]
[1756825523652,0.09749964,204.05,204.04,0.03]
[1756825524037,0.09749964,204.05,204.04,26.65057241]
[1756825524276,0.09749964,204.05,204.04,106.89273398]
[1756825524744,1e-08,204.05,204.04,106.89273398]
[1756825524935,1e-08,204.08,204.07,13.59559401]
[1756825525132,16.62,204.16,204.11,13.87991715]
[1756825525338,16.62,204.16,204.11,14.59991715]
[1756825525548,16.62,204.16,204.13,13.73775558]
[1756825525761,16.62,204.16,204.12,4.89907897]
[1756825526255,16.62,204.16,204.13,13.59559401]
[1756825526954,16.62,204.16,204.13,26.47841084]
[1756825527430,16.62,204.16,204.14,4.898599]
[1756825527631,12.82281683,204.15,204.06,13.59559401]
[1756825527866,12.16281683,204.14,204.06,13.59559401]
[1756825528076,21.51827917,204.16,204.03,0.72]
[1756825528077,12.16281683,204.1,204.03,0.72]
[1756825528237,12.16281683,204.07,204.02,4.90129079]
[1756825528444,12.82281683,204.07,204.03,13.59559401]
[1756825528946,39.64,204.09,204.02,13.59559401]
[1756825529253,12.16281683,204.08,204.03,5.04335729]
[1756825529452,12.16281683,204.08,204.03,4.90119572]
[1756825529645,39.64,204.09,204.03,4.90119572]
[1756825529953,12.16281683,204.08,204.03,4.90119572]
[1756825530162,0.66,204.08,204.03,4.90119572]
[1756825530346,12.82281683,204.08,204.03,4.90119572]
[1756825530659,12.16281683,204.05,204.01,0.03]
[1756825531059,12.92762059,204.05,204.01,0.03]
[1756825531643,52.54762059,204.05,204.01,0.03]
[1756825531954,57.4483802,204.05,204.01,0.03]
[1756825533279,61.34828495,204.05,204.01,0.03]
[1756825533558,26.0,204.02,204.01,0.03]
[1756825533762,38.16281683,204.02,204.01,0.03]
[1756825533936,38.82281683,204.02,204.01,0.03]
[1756825534939,64.86555081,204.02,204.01,1e-08]
[1756825535134,26.0,203.99,203.98,0.1]
[1756825535348,0.14216157,203.98,203.84,13.59559401]
[1756825535555,8.09662162,203.9,203.85,19.22105175]
[1756825535765,47.71662162,203.89,203.86,0.72]
[1756825536476,8.09662162,203.87,203.83,0.72]
[1756825536639,39.62,203.88,203.82,26.0]
[1756825536640,8.09662162,203.86,203.84,13.59559401]
[1756825536847,8.09662162,203.85,203.8,0.72]
[1756825537057,47.71662162,203.84,203.8,0.72]
[1756825537364,8.09662162,203.85,203.8,14.31559401]
[1756825537562,39.62,203.84,203.8,18.50219105]
[1756825537755,39.62,203.84,203.8,14.31559401]
[1756825538276,8.09662162,203.81,203.77,13.59559401]
[1756825538564,8.09662162,203.81,203.76,0.72]
[1756825538565,39.62,203.8,203.78,0.72]
[1756825538864,0.66,203.86,203.79,0.72]
[1756825539051,8.09662162,203.83,203.79,0.72]
[1756825539449,8.09662162,203.83,203.8,0.71]
[1756825539647,4.90460645,203.89,203.8,4.90677134]
[1756825539866,4.90460645,203.89,203.78,19.2126855]
[1756825539867,8.09662162,203.83,203.78,19.2126855]
[1756825540044,8.09662162,203.81,203.77,0.14216157]
[1756825540248,0.71,203.85,203.77,0.71]
[1756825540449,8.09662162,203.81,203.77,0.71]
[1756825540768,0.71,203.88,203.79,8.23878319]
[1756825540970,0.71,203.88,203.79,14.44775558]
[1756825541266,8.09662162,203.86,203.81,13.73775558]
[1756825541467,8.09662162,203.86,203.74,17.17875723]
[1756825541468,8.09662162,203.83,203.79,13.59559401]
[1756825541762,8.09662162,203.83,203.77,26.85216157]
[1756825541763,39.64,203.82,203.77,0.14216157]
[1756825541960,39.64,203.82,203.78,13.73775558]
[1756825542175,39.64,203.82,203.78,14.44775558]
[1756825542343,39.64,203.82,203.79,0.71]
[1756825542945,39.64,203.81,203.8,0.71]
[1756825543146,39.64,203.81,203.78,21.8343772]
[1756825543351,39.64,203.81,203.78,14.44775558]
[1756825543568,39.64,203.81,203.78,21.8343772]
[1756825543868,8.09662162,203.85,203.8,4.90677134]
[1756825544070,39.64,203.82,203.8,13.71339296]
[1756825544371,8.09662162,203.91,203.82,0.14216157]
[1756825544569,4.90316253,203.95,203.82,0.14216157]
[1756825544570,48.44662162,203.9,203.82,0.14216157]
[1756825544772,8.09662162,203.88,203.81,26.85216157]
[1756825544984,8.09662162,203.88,203.83,8.09662162]
[1756825545276,39.64,203.89,203.85,8.09662162]
[1756825545446,0.71,203.94,203.88,13.59559401]
[1756825545646,8.09662162,203.92,203.88,13.59559401]
[1756825545885,8.09662162,203.92,203.87,26.59729746]
[1756825545886,8.80662162,203.92,203.87,26.59729746]
[1756825546055,8.09662162,203.94,203.89,8.09662162]
[1756825546254,22.83972308,204.0,203.9,14.44775558]
[1756825546255,39.64,203.95,203.9,14.44775558]
[1756825546550,0.09038866,204.1,203.94,21.8343772]
[1756825546779,11.26,204.04,203.99,8.09662162]
[1756825546986,11.26,204.04,204.0,8.09662162]
[1756825547150,11.26,204.04,203.97,14.44775558]
[1756825547151,11.26,204.04,203.98,0.14216157]
[1756825547354,11.26,204.04,204.0,8.09662162]
[1756825547654,8.09662162,204.01,203.93,13.73775558]
[1756825547860,8.09662162,203.94,203.9,26.71]
[1756825548061,39.64,203.95,203.91,13.73775558]
[1756825548256,36.02,203.95,203.91,13.73775558]
[1756825548450,36.02,203.95,203.91,18.64187751]
[1756825548871,8.80662162,203.94,203.88,0.14216157]
[1756825549082,8.09662162,203.93,203.88,13.59559401]
[1756825549286,0.71,203.94,203.88,13.59559401]
[1756825549462,8.09662162,203.93,203.88,13.59559401]
[1756825549660,8.09662162,203.93,203.89,0.14216157]
[1756825549875,8.09662162,203.94,203.89,5.04668796]
[1756825550078,8.80662162,203.93,203.89,0.14216157]
[1756825550251,8.09662162,203.94,203.89,5.0467404]
[1756825550451,8.80662162,203.94,203.89,5.0467404]
[1756825550850,8.09662162,203.94,203.89,0.14216157]
[1756825551074,0.1039653,203.9,203.88,0.14216157]
[1756825551277,47.84058692,203.9,203.84,4.90577057]
[1756825551477,48.55058692,203.9,203.85,13.59559401]
[1756825551873,40.4539653,203.9,203.85,13.59559401]
[1756825552060,52.74498321,203.9,203.85,13.59559401]
[1756825552262,8.80662162,203.89,203.85,13.59559401]
[1756825552456,8.80662162,203.89,203.84,13.59559401]
[1756825552657,47.84058692,203.9,203.85,0.14216157]
[1756825552874,0.1039653,203.9,203.88,8.09662162]
[1756825553086,0.1039653,203.9,203.89,22.68653877]
[1756825553294,0.1039653,203.9,203.89,13.87991715]
[1756825553480,0.1039653,203.9,203.86,13.62559401]
[1756825553805,0.71,203.89,203.86,0.03]
[1756825554102,8.80662162,203.88,203.86,0.03]
[1756825554298,8.09662162,203.87,203.86,0.03]
[1756825554599,8.80662162,203.87,203.86,0.03]
[1756825554762,0.71,203.87,203.86,0.03]
[1756825555173,8.80662162,203.87,203.86,0.03]
[1756825555776,13.71170819,203.87,203.86,0.03]
[1756825557091,39.71170819,203.87,203.86,0.03]
[1756825557293,39.71170819,203.87,203.86,1e-08]
[1756825558292,53.49386976,203.87,203.86,1e-08]
[1756825558492,53.49386976,203.87,203.71,0.71]
[1756825558493,82.32755901,203.87,203.65,0.71]
[1756825558694,8.09662162,203.7,203.65,0.71]
[1756825558899,39.64,203.69,203.65,0.71]
[1756825559195,39.64,203.69,203.6,0.71]
[1756825559386,0.71,203.72,203.63,8.09662162]
[1756825559590,0.71,203.72,203.65,7.59662162]
[1756825559799,39.46,203.71,203.65,13.59559401]
[1756825559988,39.46,203.71,203.64,8.80662162]
[1756825560192,39.46,203.71,203.61,0.71]
[1756825560193,8.09662162,203.66,203.61,0.71]